[Event "USA Senior-ch TB 2022"]
[Site "Saint Louis"]
[Date "2022.07.19"]
[Round "3.1"]
[White "Gurevich, Dmitry"]
[Black "Akopian, Vladimir"]
[Result "1/2-1/2"]
[ECO "A75"]
[WhiteElo "2351"]
[BlackElo "2620"]
[Annotator "TA"]
[PlyCount "148"]
[EventDate "2022.07.07"]
[EventType "tourn"]
[EventCountry "USA"]
[SourceTitle "playchess.com"]
[Source "ChessBase"]
[SourceQuality "1"]
[TimeControl "180+2"]

{[%evp 27,148,-24,-22,-31,-37,-4,0,0,36,-41,0,0,0,0,0,-12,-8,-12,0,0,15,1,57,72,59,54,65,64,91,14,86,36,142,150,155,166,167,166,154,137,331,93,396,379,296,102,164,117,393,381,329,321,529,302,282,179,179,179,179,179,179,171,171,171,171,171,171,171,171,171,316,171,643,48,171,48,87,0,48,0,89,0,57,57,171,171,359,360,347,338,364,158,365,295,327,0,281,249,244,144,144,104,140,110,109,110,110,110,110,84,84,84,12839,12840,12843,110,110,110,12843,106,106,106,106]} 1. d4 {[%emt 0:00:00]} Nf6 {[%emt 0:00:00]} 2. c4 {[%emt 0:00:00]} e6 {[%emt 0:00:00]} 3. Nf3 {[%emt 0:00:00]} c5 {[%emt 0:00:00]} 4. d5 {[%emt 0:00:00]} d6 {[%emt 0:00:00]} 5. Nc3 {[%emt 0:00:00]} exd5 6. cxd5 {[%emt 0:00:00]} g6 {[%emt 0:00:00]} 7. e4 {[%emt 0:00:00]} a6 {[%emt 0:00:00]} 8. a4 {[%emt 0:00:00]} Bg4 {[%emt 0:00:00]} 9. Be2 {[%emt 0:00:00]} Bxf3 {[%emt 0:00:00]} 10. Bxf3 {[%emt 0:00:00]} Bg7 {[%emt 0:00:00]} 11. O-O {[%emt 0:00:00]} O-O {[%emt 0:00:00]} 12. Bf4 {[%emt 0:00:00]} Qe7 {[%emt 0:00:00]} 13. Qb3 {[%emt 0:00:00]} Nbd7 {[%emt 0:00:00]} 14. Qxb7 {[%emt 0:00:00]} Rfb8 {[%emt 0:00:00]} 15. Qc6 {[%emt 0:00:00] A75: Modern Benoni: Classical: 9...a6 10 a4 Bg4.} Ne8 {[%emt 0:00:00][%mdl 1024] Black has compensation.} 16. a5 {[%emt 0:00:00]} Be5 {[%emt 0:00:00]} 17. Be3 {[%emt 0:00:00] The position is equal.} Bd4 {[%emt 0:00:00]} 18. Bf4 {[%emt 0:00:00]} ({White should try} 18. Bxd4 $1 $14 cxd4 19. Ne2) 18... Ne5 {[%emt 0:00:00]} (18... Ra7 $5 {[%cal Rb8b2]}) 19. Bxe5 {[%emt 0:00:00] [#]} Qxe5 $146 {[%emt 0:00:00]} ({Predecessor:} 19... Bxe5 20. Be2 Nf6 21. Ra3 Bxc3 22. bxc3 Nxe4 23. Bxa6 Nd2 {½-½ (31) Pitirimov,S (2128)-Hansen,M (2000) IECG email 2003}) 20. Na4 {[%emt 0:00:00]} Rc8 {[%emt 0:00:00]} 21. Qd7 {[%emt 0:00:00]} Rc7 {[%emt 0:00:00]} 22. Qh3 {[%emt 0:00:00]} Bxb2 {[%emt 0:00:00]} 23. Rab1 {[%emt 0:00:00]} Rb8 {[%emt 0:00:01]} 24. Nb6 {[%emt 0:00:00]} c4 {[%emt 0:00:02]} (24... Qc3 $11) 25. Nd7 $14 {[%emt 0:00:00]} Rxd7 {[%emt 0:00:02]} 26. Qxd7 {[%emt 0:00:00]} c3 $1 {[%emt 0:00:02]} 27. Qc6 {[%emt 0:00:00]} Nf6 {[%emt 0:00:21]} 28. Rfe1 {[%emt 0:00:00]} (28. Qxa6 c2 29. Rbe1 Qf4) (28. g3 $16) 28... Kg7 {[%emt 0:00:06]} (28... Rb5 $1 $11 29. Qxa6 Rc5) 29. Bd1 {[%emt 0:00:01]} (29. Qxa6 $2 c2 30. Qd3 cxb1=N 31. Rxb1 Rc8 $19) ({White should play} 29. g3 $16) 29... Rb4 {[%emt 0:00:22]} (29... Rb5 $14) 30. Bc2 $1 $16 {[%emt 0:00:22]} (30. Qxa6 $6 Rxe4 31. Rf1 (31. Rxe4 $2 Qxe4 32. Bc2 Qxc2 $19) 31... Re1 $14) 30... Rd4 {[%emt 0:00:47]} 31. Qxa6 {[%emt 0:00:28]} Ng4 {[%emt 0:00:17]} 32. g3 $1 {[%emt 0:00:07] Strongly threatening h3.} Qh5 {[%emt 0:00:07]} 33. h4 {[%emt 0:00:19]} Ne5 $2 {[%emt 0:00:02]} (33... g5 $16) 34. Qe2 $2 {[%emt 0:00:46]} (34. Qxd6 Rd2 35. Qc7 Rxc2 36. Rxb2 Nf3+ 37. Kf1 Nh2+ 38. Kg1 Nf3+ 39. Kf1 Nh2+ 40. Kg1 Nf3+ $11) (34. Red1 $1 $18 {[%cal Rd1d4]}) 34... Nf3+ {[%emt 0:00:02][%mdl 8192]} (34... Rd2 $16 35. Qxh5 gxh5) 35. Kg2 $18 {[%emt 0:00:07]} Nxe1+ {[%emt 0:00:03]} 36. Rxe1 $2 {[%emt 0:00:07]} (36. Qxe1 $18 {And now Qe3 would win.} Rb4 37. Qe3 (37. Rxb2 Rxb2 38. Qxc3+ Qe5 $14)) 36... Qe5 {[%emt 0:00:02]} (36... Qxe2 $16 37. Rxe2 Ba3) 37. Rd1 {[%emt 0:00:17]} (37. a6 $18 Rd2 38. Qf3) 37... Rb4 $2 {[%emt 0:00:07][%mdl 8192]} (37... Rd2 $16 {keeps fighting.} 38. Rxd2 cxd2) 38. a6 {[%emt 0:00:10] aiming for a7.} Qe7 {[%emt 0:00:07]} 39. Qe3 {[%emt 0:00:03]} Rb5 $2 {[%emt 0:00:08]} (39... Rb8 {might work better.} 40. h5 Kg8) 40. Rd4 {[%emt 0:00:11]} Ba3 {[%emt 0:00:14]} 41. Qxc3 {[%emt 0:00:11]} Bb2 {[%emt 0:00:02]} 42. Qd3 {[%emt 0:00:18]} Bxd4 {[%emt 0:00:06]} 43. Qxb5 {[%emt 0:00:07][%mdl 4096] Endgame KQB-KQB} (43. Qxd4+ f6 $16) 43... Qf6 {[%emt 0:00:32]} 44. Qe2 {[%emt 0:00:02]} Ba7 {[%emt 0:00:03]} 45. Bd3 {[%emt 0:00:06]} Qd4 {[%emt 0:00:02]} 46. Bb5 {[%emt 0:00:03]} h5 {[%emt 0:00:03]} 47. Qf3 {[%emt 0:00:08]} Qb2 {[%emt 0:00:13]} 48. Be8 {[%emt 0:00:10]} f6 {[%emt 0:00:02] [#]} (48... Qf6 $142 49. Qe2 Qe5) 49. Bc6 {[%emt 0:00:07]} (49. Bxg6 $142 $1 {[%mdl 512]} Kxg6 50. Qf5+ Kh6 51. g4) 49... Bd4 $2 {[%emt 0:00:05]} (49... Kf7 50. Ba4 Bc5) 50. Bb7 $2 {[%emt 0:00:09]} (50. e5 $18 {Threatens to win with Qxf6+.} fxe5 51. Be8) 50... Qd2 {[%emt 0:00:08]} ({Better is} 50... Qc2 $14) 51. Qf4 {[%emt 0:00:03]} (51. Bc8 $1 $18) 51... Qb2 {[%emt 0:00:07]} 52. Kh3 {[%emt 0:00:07]} (52. Qxd6 Qxf2+ 53. Kh3 Qf1+ 54. Kh2 Qg1+ 55. Kh3 Qh1#) (52. Bc8 $16) 52... Qa1 {[%emt 0:00:08]} (52... Qe2 $11 53. Kg2 (53. Qxd6 {is a self mate.} Qf1+ 54. Kh2 Qxf2+ 55. Kh3 Qf1+ 56. Kh2 Qg1+ 57. Kh3 Qh1#) 53... Qa2) 53. Kg2 {[%emt 0:00:03]} Qb2 $1 {[%emt 0:00:03]} 54. Qf3 {[%emt 0:00:02] Prevents Qe2.} (54. Qxd6 {gets mated.} Qxf2+ 55. Kh3 Qf1+ 56. Kh2 Qg1+ 57. Kh3 Qh1#) (54. Bc8 $16) 54... Qa2 {[%emt 0:00:06]} (54... Qd2 $1 $11) 55. Bc8 $14 {[%emt 0:00:04][%cal Oe4e5] e5! is the strong threat.} Qc2 {[%emt 0:00:09]} (55... Qc4 $14) 56. Bd7 $18 {[%emt 0:00:03]} Qb2 $2 {[%emt 0:00:02]} (56... Ba7 57. g4 hxg4 58. Bxg4 Qb2) 57. g4 {[%emt 0:00:02]} hxg4 58. Bxg4 {[%emt 0:00:02]} Qa2 {[%emt 0:00:05]} 59. Bc8 {[%emt 0:00:05]} (59. Qg3 $18) 59... Qc2 $2 {[%emt 0:00:02]} (59... Qc4 $16) 60. Be6 {[%emt 0:00:02]} Qa2 {[%emt 0:00:02]} 61. Bc8 {[%emt 0:00:02] Hoping for h5.} Qc2 $1 {[%emt 0:00:02]} 62. Bh3 {[%emt 0:00:12]} Qa2 63. Bg4 {[%emt 0:00:00]} (63. h5 $18) 63... Qxa6 $16 {[%emt 0:00:04]} 64. h5 {[%emt 0:00:00] Black must now prevent hxg6.} gxh5 {[%emt 0:00:07]} 65. Bxh5 {[%emt 0:00:00]} Qc8 {[%emt 0:00:05]} 66. Qg3+ {[%emt 0:00:00]} Kh8 {[%emt 0:00:02]} 67. Qxd6 {[%emt 0:00:02]} Qg8+ {[%emt 0:00:02]} 68. Qg3 {[%emt 0:00:02]} (68. Kf1 {keeps more tension.} Qc8 69. Qa3 Qc5 70. Qxc5 Bxc5 71. Kg2) 68... Qxg3+ {[%emt 0:00:02]} 69. Kxg3 {[%emt 0:00:10] KB-KB} Kg7 $2 {[%mdl 8192] [#]} (69... f5 $16) 70. f4 $1 $18 {[%emt 0:00:00]} Kf8 {[%emt 0:00:04]} 71. Kg4 $2 {[%emt 0:00:00]} (71. d6 $18 {and the rest is easy.} Bc5 72. d7) 71... Ke7 $16 {[%emt 0:00:02]} 72. Kf5 {[%emt 0:00:00]} Bb6 $2 {[%emt 0:00:02][%mdl 8192] [#]} (72... Kd6 $16 73. Be2 Be3) 73. Bd1 $2 {[%emt 0:00:01]} (73. d6+ $1 $18 {is the precise move to win.} Kd7 74. Kxf6 Kxd6 75. e5+ Kd5 76. Bf3+ Kd4 77. e6) 73... Bc7 {[%emt 0:00:02]} 74. Bb3 {[%emt 0:00:05]} Bd6 {[%emt 0:00:02] Weighted Error Value: White=0.48/Black=0.69} 1/2-1/2

[Event "USA Senior-ch TB 2022"]
[Site "Saint Louis"]
[Date "2022.07.19"]
[Round "3.2"]
[White "Christiansen, Larry"]
[Black "Dlugy, Maxim"]
[Result "1-0"]
[ECO "D26"]
[WhiteElo "2577"]
[BlackElo "2513"]
[Annotator "TA"]
[PlyCount "107"]
[EventDate "2022.07.07"]
[EventType "tourn"]
[EventCountry "USA"]
[SourceTitle "playchess.com"]
[Source "ChessBase"]
[SourceQuality "1"]
[TimeControl "180+2"]

{[%evp 12,107,31,25,36,17,19,11,35,0,20,6,18,21,24,17,19,0,7,7,14,33,111,111,128,89,94,91,86,106,97,105,120,87,86,93,89,94,82,83,79,91,106,119,668,665,659,660,828,793,785,771,840,840,829,811,1187,1196,1198,922,1196,1160,1118,1118,1118,1115,1112,1105,1907,1884,6513,6346,5824,5808,2044,0,2149,1969,5306,5229,2328,1886,2887,1983,29974,29975,29981,29982,29984,29985,29985,29984,29990,29991,29993,29994,29995,29991]} 1. d4 {[%emt 0:00:00]} d5 {[%emt 0:00:00]} 2. c4 {[%emt 0:00:00]} dxc4 {[%emt 0:00:00]} 3. e3 {[%emt 0:00:00]} e6 {[%emt 0:00:00]} 4. Bxc4 {[%emt 0:00:00]} Nf6 {[%emt 0:00:00]} 5. Nf3 {[%emt 0:00:00]} a6 {[%emt 0:00:00]} 6. O-O {[%emt 0:00:00]} b5 {[%emt 0:00:00]} 7. Be2 {[%emt 0:00:00]} Bb7 {[%emt 0:00:00] D26: Queen's Gambit Accepted: 4 e3 e6 5 Bxc5 c5 sidelines.} 8. a4 {[%emt 0:00:00]} b4 {[%emt 0:00:00]} 9. Nbd2 {[%emt 0:00:00]} Nbd7 {[%emt 0:00:00] The position is equal.} 10. Nc4 {[%emt 0:00:00] 10.Nc4 is better than 10.b3.} c5 {[%emt 0:00:00]} 11. Nfe5 {[%emt 0:00:00]} Be7 {[%emt 0:00:00]} 12. Bf3 {[%emt 0:00:00]} Bd5 {[%emt 0:00:00] [#]} 13. Qe2 $146 {[%emt 0:00:00]} ({Predecessor:} 13. Re1 cxd4 14. Bxd5 Nxd5 15. Qf3 Nxe5 16. Nxe5 O-O 17. Nc6 Qb6 18. Nxd4 Rac8 19. e4 Qxd4 20. exd5 {0-1 (56) Briem,B (1901)-Pasztor,B (2100) Bratislava 2019}) 13... cxd4 {[%emt 0:00:00]} 14. exd4 {[%emt 0:00:00]} Rc8 {[%emt 0:00:00]} 15. b3 {[%emt 0:00:00]} Bxf3 {[%emt 0:00:00]} 16. Qxf3 {[%emt 0:00:00]} O-O {[%emt 0:00:00]} (16... Nb8 $14) 17. Nc6 $16 {[%emt 0:00:00]} Qe8 {[%emt 0:00:00]} 18. Bg5 {[%emt 0:00:00]} h6 {[%emt 0:00:00]} 19. Bh4 {[%emt 0:00:00] 0x0.001e39e239a5dp-1022s more active pieces.} Nb8 {[%emt 0:00:00]} 20. Nxe7+ {[%emt 0:00:00]} Qxe7 {[%emt 0:00:00]} 21. Rfe1 {[%emt 0:00:00]} Nbd7 {[%emt 0:00:00]} 22. d5 {[%emt 0:00:00]} Qc5 {[%emt 0:00:00]} 23. dxe6 {[%emt 0:00:00]} fxe6 {[%emt 0:00:00]} 24. Bg3 {[%emt 0:00:00] Black must now prevent Bd6.} ({Don't blunder} 24. Rxe6 $2 Qd4 25. Ree1 (25. Bxf6 $2 Rxf6 26. Rd1 Rxe6 $19) 25... Qxh4 $19) 24... Nh5 {[%emt 0:00:00] [#]} 25. Qe2 {[%emt 0:00:00]} Nxg3 {[%emt 0:00:00]} 26. hxg3 {[%emt 0:00:00]} Rf6 {[%emt 0:00:05]} 27. Rad1 {[%emt 0:00:00]} Nb6 {[%emt 0:00:07][%mdl 8192]} (27... Qe7 $16 28. Ne3 Rff8) 28. Nd6 $18 {[%emt 0:00:00]} Nd5 {[%emt 0:00:52]} 29. Ne4 {[%emt 0:00:00]} Qb6 {[%emt 0:00:45]} 30. Nxf6+ {[%emt 0:00:04]} Nxf6 {[%emt 0:00:02]} 31. a5 {[%emt 0:00:07]} Qc6 {[%emt 0:00:05]} 32. Qxe6+ {[%emt 0:00:05]} Qxe6 {[%emt 0:00:02]} 33. Rxe6 {[%emt 0:00:02][%mdl 4096] Endgame KRR-KRN} Rc3 {[%emt 0:00:02]} 34. Rb1 {[%emt 0:00:13]} Rc2 {[%emt 0:00:08]} 35. Rxa6 {[%emt 0:00:10]} Ne4 {[%emt 0:00:02]} 36. Ra8+ {[%emt 0:00:31]} Kf7 {[%emt 0:00:02]} 37. Ra1 {[%emt 0:00:06] And now a6 would win.} Nd2 {[%emt 0:00:05]} 38. a6 {[%emt 0:00:10] Threatening mate with a7.} Nxb3 {[%emt 0:00:02]} 39. Rb1 {[%emt 0:00:02]} Nd2 {[%emt 0:00:03]} 40. Rxb4 {[%emt 0:00:09]} Ra2 {[%emt 0:00:10]} 41. f3 {[%emt 0:00:12]} Ra1+ {[%emt 0:00:02]} 42. Kf2 {[%emt 0:00:03]} Ra2 {[%emt 0:00:02]} 43. Kg1 {[%emt 0:00:38]} Ra1+ {[%emt 0:00:03] [#]} 44. Kh2 $1 {[%emt 0:00:02]} Ra2 {[%emt 0:00:02]} 45. Kh3 {[%emt 0:00:03]} h5 {[%emt 0:00:03]} 46. Rd8 {[%emt 0:00:21]} Ra1 {[%emt 0:00:09]} 47. g4 {[%emt 0:00:14]} hxg4+ {[%emt 0:00:02]} 48. Kxg4 {[%emt 0:00:16] White mates.} Nf1 {[%emt 0:00:02]} 49. Rb7+ {[%emt 0:00:04]} Kg6 {[%emt 0:00:02]} 50. a7 {[%emt 0:00:02]} Ra4+ {[%emt 0:00:05]} 51. f4 {[%emt 0:00:03]} Ra3 {[%emt 0:00:25]} 52. Rb6+ {[%emt 0:00:07]} Kh7 {[%emt 0:00:02]} 53. a8=Q {[%emt 0:01:04][%csl Ga8][%cal Rd8h8]} Ne3+ {[%emt 0:00:00]} 54. Kf3 {[%emt 0:00:00] Weighted Error Value: White=0.10 (very precise) /Black=0.47} 1-0

[Event "USA Senior-ch TB 2022"]
[Site "Saint Louis"]
[Date "2022.07.19"]
[Round "4.1"]
[White "Akopian, Vladimir"]
[Black "Christiansen, Larry"]
[Result "0-1"]
[ECO "C42"]
[WhiteElo "2620"]
[BlackElo "2577"]
[Annotator "TA"]
[PlyCount "104"]
[EventDate "2022.07.07"]
[EventType "tourn"]
[EventCountry "USA"]
[SourceTitle "playchess.com"]
[Source "ChessBase"]
[SourceQuality "1"]
[TimeControl "180+2"]

{[%evp 16,104,13,26,23,40,59,54,53,50,51,36,59,46,50,47,68,60,91,93,80,39,39,26,47,15,21,16,17,0,0,-6,0,-6,0,-33,-32,-62,-77,-106,12,-10,18,31,50,63,105,54,135,-80,-88,-111,-116,-96,-93,-80,-75,-85,-91,-141,-141,-256,-262,-333,-329,-324,-320,-299,-290,-370,-373,-396,-395,-423,-422,-412,-411,-1185,-317,-29936,-12847,-29942,-29940,-29941,-29936,-12845,-12846,-12848,-12844,-29958,-4141]} 1. e4 {[%emt 0:00:00]} e5 {[%emt 0:00:00]} 2. Nf3 {[%emt 0:00:00]} Nf6 {[%emt 0:00:00]} 3. Nxe5 {[%emt 0:00:00]} d6 {[%emt 0:00:00][%cal Bd7d6,Bd6d5][%mdl 32]} 4. Nf3 {[%emt 0:00:00]} Nxe4 {[%emt 0:00:00]} 5. d4 {[%emt 0:00:00]} d5 {[%emt 0:00:00]} 6. Bd3 {[%emt 0:00:00]} Be7 {[%emt 0:00:00]} 7. O-O {[%emt 0:00:00]} Nc6 {[%emt 0:00:00]} 8. c4 {[%emt 0:00:00] 8.Nbd2 gains popularity.} Nb4 {[%emt 0:00:00]} 9. Be2 {[%emt 0:00:00]} dxc4 {[%emt 0:00:00] C42: Petroff Defence: 3 Nxe5 and unusual White 3rd moves.} 10. Bxc4 {[%emt 0:00:00]} Nd6 $5 {[%emt 0:00:00][%mdl 4] Exploring less charted territory.} 11. Qa4+ {[%emt 0:00:00]} b5 {[%emt 0:00:00] White is slightly better.} 12. Bxb5+ {[%emt 0:00:00]} Nxb5 {[%emt 0:00:00]} 13. Qxb5+ {[%emt 0:00:00]} Bd7 {[%emt 0:00:00]} 14. Qe2 {[%emt 0:00:00]} O-O {[%emt 0:00:00] [#]} 15. Nc3 $146 {[%emt 0:00:00]} ({Predecessor:} 15. a3 Nd5 16. Re1 Re8 17. Qd3 Rb8 18. Nc3 Be6 19. b4 Nxc3 20. Qxc3 Bd6 21. Bg5 {½-½ (54) Tauscher,K (2422)-Ganz,H (2299) Remote email 2014}) 15... Re8 {[%emt 0:00:00]} 16. a3 {[%emt 0:00:00]} Bd6 {[%emt 0:00:00]} 17. Be3 $1 {[%emt 0:00:00]} Nc6 {[%emt 0:00:00]} 18. h3 {[%emt 0:00:00] Inhibits Bg4.} Qf6 {[%emt 0:00:00]} 19. Nb5 {[%emt 0:00:00]} Qg6 {[%emt 0:00:00]} 20. Nxd6 {[%emt 0:00:00]} cxd6 {[%emt 0:00:00]} 21. Kh2 {[%emt 0:00:00]} Ne7 {[%emt 0:00:00]} 22. Nh4 {[%emt 0:00:12]} Qf6 {[%emt 0:00:00]} 23. Qh5 {[%emt 0:00:07]} h6 {[%emt 0:00:00]} 24. Rac1 {[%emt 0:00:17]} Rab8 {[%emt 0:00:00]} 25. Rc7 {[%emt 0:00:20]} (25. d5 $5 {[%cal Rc1c7]}) 25... Be6 {[%emt 0:00:00]} 26. Rxa7 {[%emt 0:00:44]} Rxb2 {[%emt 0:00:01]} 27. Ra5 {[%emt 0:00:38] Against Nd5} Bc4 {[%emt 0:01:10]} ({Black should play} 27... Nc6 $1 $17 {[%cal Rc6a5]} 28. Rf5 (28. Rb5 $2 g6 $19) 28... Bxf5 29. Nxf5 Ne7 30. Nxe7+ Qxe7) 28. Rc1 {[%emt 0:00:08]} d5 {[%emt 0:00:02] Threatens to win with ...Be2.} 29. Qg4 {[%emt 0:00:44]} Be2 {[%emt 0:00:27]} 30. Qg3 {[%emt 0:00:09]} g5 {[%emt 0:00:09] White must now prevent ...Kh7.} 31. f4 {[%emt 0:00:07]} (31. Ra7 $1 $16) 31... Qd6 {[%emt 0:00:38]} (31... g4 $1 $14) 32. fxg5 $2 {[%emt 0:00:06]} (32. Rc3 $1 $16) 32... Qxg3+ $17 {[%emt 0:00:06]} 33. Kxg3 {[%emt 0:00:02]} Rb3 $36 {[%emt 0:00:07][%csl LRe3,LRg5][%mdl 2048] Inhibits Rc3. Black is really pushing.} 34. Kf2 {[%emt 0:00:02] [#] And now Re1 would win.} Rxe3 $1 {[%emt 0:00:04]} 35. Kxe3 {[%emt 0:00:05]} Nc6+ $1 {[%emt 0:00:02][%mdl 64] Discovered Attack} 36. Kf2 {[%emt 0:00:12]} Nxa5 {[%emt 0:00:02]} 37. Re1 {[%emt 0:00:19]} (37. gxh6 $142 Nb3 38. Re1 Nxd4 39. g4) 37... hxg5 {[%emt 0:00:03]} 38. Nf5 {[%emt 0:00:05] [#]} (38. Rxe2 $17 Rxe2+ 39. Kxe2 gxh4 40. Kf3) 38... Bb5 $1 $19 {[%emt 0:00:02]} 39. Rxe8+ Bxe8 {[%emt 0:00:02]} 40. Ne7+ {[%emt 0:00:04]} Kg7 {[%emt 0:00:03]} 41. Nxd5 {[%emt 0:00:02]} Nc4 {[%emt 0:00:02] Inhibits Nb6.} 42. Nc3 {[%emt 0:00:02]} Nxa3 {[%emt 0:00:02]} 43. Ne4 {[%emt 0:00:02]} f6 {[%emt 0:00:03]} 44. Nd6 {[%emt 0:00:02]} Bc6 {[%emt 0:00:11]} 45. Kg3 {[%emt 0:00:02]} Kg6 {[%emt 0:00:07]} 46. h4 {[%emt 0:00:02]} (46. Kf2 $142) 46... Nb5 $2 {[%emt 0:00:02]} (46... gxh4+ 47. Kxh4 Bxg2) 47. Nc4 $2 {[%emt 0:00:02]} (47. d5 $19) 47... gxh4+ {[%emt 0:00:07]} 48. Kxh4 {[%emt 0:00:02]} Bxg2 {[%emt 0:00:04]} 49. Ne3 {[%emt 0:00:02]} Bb7 {[%emt 0:00:06]} 50. d5 {[%emt 0:00:02]} f5 {[%emt 0:00:05]} 51. Kg3 {[%emt 0:00:02]} Kg5 {[%emt 0:00:02] ( -> ...f4+)} 52. Kf3 {[%emt 0:00:02]} Nc3 {[%emt 0:00:04] Weighted Error Value: White=0.72/Black=0.31} 0-1

[Event "USA Senior-ch TB 2022"]
[Site "Saint Louis"]
[Date "2022.07.19"]
[Round "4.2"]
[White "Shabalov, Alexander"]
[Black "Gurevich, Dmitry"]
[Result "1-0"]
[ECO "B57"]
[WhiteElo "2510"]
[BlackElo "2351"]
[Annotator "TA"]
[PlyCount "63"]
[EventDate "2022.07.07"]
[EventType "tourn"]
[EventCountry "USA"]
[SourceTitle "playchess.com"]
[Source "ChessBase"]
[SourceQuality "1"]
[TimeControl "180+2"]

{[%evp 11,63,11,33,18,19,0,6,0,14,0,0,7,14,17,18,11,10,12,12,12,59,48,44,43,70,75,126,126,185,181,180,194,220,214,209,219,260,255,284,305,392,266,294,290,271,258,329,265,261,231,340,340,512,504]} 1. e4 {[%emt 0:00:00]} c5 {[%emt 0:00:00]} 2. Nf3 {[%emt 0:00:00]} d6 {[%emt 0:00:00]} 3. d4 {[%emt 0:00:00]} cxd4 {[%emt 0:00:00]} 4. Nxd4 {[%emt 0:00:00]} Nf6 {[%emt 0:00:00]} 5. Nc3 {[%emt 0:00:00]} Nc6 {[%emt 0:00:00]} 6. Bc4 {[%emt 0:00:00]} Bd7 {[%emt 0:00:00]} 7. a3 {[%emt 0:00:00] B57: Classical Sicilian: Sozin with 6...Qb6.} g6 {[%emt 0:00:00]} 8. h3 {[%emt 0:00:00]} Bg7 {[%emt 0:00:00][%cal Of6e4]} 9. Be3 {[%emt 0:00:00] The position is equal.} O-O {[%emt 0:00:00]} 10. O-O {[%emt 0:00:00]} Rc8 {[%emt 0:00:00] [#] Strongly threatening ...Nxd4.} 11. Ba2 {[%emt 0:00:00]} Ne5 {[%emt 0:00:00][%cal Oc8c3]} 12. f4 {[%emt 0:00:00]} Nc4 {[%emt 0:00:00]} 13. Bxc4 {[%emt 0:00:00]} Rxc4 {[%emt 0:00:00]} 14. Qd3 {[%emt 0:00:00]} Rc8 {[%emt 0:00:00]} 15. Rad1 {[%emt 0:00:00]} a6 {[%emt 0:00:00] [#]} (15... Qc7 $11 {was preferrable.}) 16. e5 $146 {[%emt 0:00:00][%mdl 2048] White has some pressure.} ({Predecessor:} 16. Nb3 Bc6 17. Nd5 Nxd5 18. exd5 Bb5 19. Qe4 Bxf1 20. Rxf1 b5 21. c3 Rc4 22. Nd4 {0-1 (43) Zaiarski,S (1636)-Melkumyants,A (2002) Porec 2015}) 16... Ne8 {[%emt 0:00:00]} 17. Qe4 {[%emt 0:00:00]} Bc6 {[%emt 0:00:00]} 18. Nxc6 {[%emt 0:00:00]} Rxc6 {[%emt 0:00:00] [#]} (18... bxc6 $142 19. Bd4 d5) 19. Nd5 $1 $16 {[%emt 0:00:00][%cal Bc3d5,Bd5b4,Bb4d3][%mdl 32] White is much more active. The black rooks are badly placed.} e6 {[%emt 0:00:00]} (19... Qd7 $16) 20. Nb4 $18 {[%emt 0:00:00]} Rc7 {[%emt 0:00:00]} 21. Bb6 {[%emt 0:00:00]} Qd7 {[%emt 0:00:00]} 22. Bxc7 {[%emt 0:00:00]} Qxc7 {[%emt 0:00:00]} 23. Nd3 {[%emt 0:00:00]} dxe5 {[%emt 0:00:00]} 24. fxe5 {[%emt 0:00:00]} Qxc2 {[%emt 0:00:00]} 25. Rc1 {[%emt 0:00:00]} ({Resist} 25. Qxb7 $6 Nc7 26. Qe4 Nd5 $18) 25... Qb3 {[%emt 0:00:00]} 26. Kh1 {[%emt 0:00:00] Black must now prevent Nc5.} Qb5 {[%emt 0:00:23]} 27. b4 {[%emt 0:00:24]} b6 {[%emt 0:00:22]} 28. Rf3 {[%emt 0:00:24]} a5 {[%emt 0:00:20]} 29. bxa5 {[%emt 0:00:11]} Qxa5 {[%emt 0:00:23]} 30. a4 {[%emt 0:00:13]} Bh6 {[%emt 0:00:21]} (30... Qa7 $142 31. Qd4 Bh6) 31. Rc8 {[%emt 0:00:21]} Bg5 {[%emt 0:00:35]} (31... Ng7 $142 32. Rxf8+ (32. Qb7 Nf5 $18) 32... Kxf8) 32. Qc6 {[%emt 0:00:18] Weighted Error Value: White=0.10 (very precise) /Black=0.36} 1-0